bitfinex-derivatives/quotes_ETHF0:USTF0_20250427
["timestamp","ask_amount","ask_price","bid_price","bid_amount"]
[1745720795231,11.24497,1817.7,1817.6,1.09988]
[1745720795830,6.24497,1817.7,1817.6,1.09988]
[1745720801243,1.28864,1817.7,1817.6,1.09988]
[1745720801428,1.28864,1817.7,1817.6,6.09988]
[1745720801630,1.28864,1817.7,1817.6,7.94688]
[1745720804925,1.28864,1817.7,1817.6,2.94688]
[1745720808540,1.8658,1817.9,1817.8,1.09976]
[1745720808741,1.8658,1817.9,1817.8,5.30776]
[1745720809339,5.5878,1817.9,1817.8,7.18146]
[1745720810253,5.5878,1817.9,1817.8,9.15716]
[1745720815345,5.5878,1817.9,1817.8,11.06426]
[1745720823145,5.5878,1817.9,1817.8,9.15716]
[1745720823542,2.15843,1817.9,1817.8,14.15716]
[1745720823735,2.15843,1817.9,1817.8,16.07906]
[1745720823938,1.00117,1817.9,1817.8,16.07906]
[1745720824533,1e-08,1817.9,1817.8,16.07906]
[1745720825153,3.722,1818.0,1817.9,1.0997]
[1745720825446,3.722,1818.0,1817.9,6.2294]
[1745720825944,3.722,1818.0,1817.9,1.0997]
[1745720826152,6.9298,1818.0,1817.9,1.0997]
[1745720829942,3.722,1818.0,1817.9,1.0997]
[1745720830548,5.586,1818.0,1817.9,1.0997]
[1745720831649,11.8867,1818.0,1817.5,7.32522682]
[1745720831949,3.2078,1817.7,1817.6,1.09988]
[1745720832147,6.9298,1817.7,1817.5,8.42512682]
[1745720832350,5.8284,1817.6,1817.5,8.42512682]
[1745720833139,9.5504,1817.6,1817.5,8.42512682]
[1745720834749,9.5504,1817.6,1817.5,1.0999]
[1745720837549,14.5504,1817.6,1817.2,3.2078]
[1745720837749,5.1383,1817.5,1817.3,5.29602]
[1745720837950,5.1383,1817.5,1817.0,73.22222682]
[1745720837951,1.9305,1817.4,1817.0,73.22222682]
[1745720838150,3.2078,1817.1,1817.0,73.22222682]
[1745720838350,3.2078,1817.1,1817.0,12.62147682]
[1745720839351,6.9298,1817.1,1817.0,12.62147682]
[1745720839651,8.8969,1817.1,1817.0,12.62147682]
[1745720840844,8.8969,1817.1,1817.0,7.12625]
[1745720841749,3.722,1817.1,1817.0,14.12755]
[1745720841953,3.722,1817.1,1817.0,9.12755]
[1745720842149,3.722,1817.1,1817.0,11.13545]
[1745720846154,3.722,1817.1,1817.0,5.29625]
[1745720846546,3.722,1817.1,1817.0,4.196]
[1745720846742,5.6021,1817.1,1817.0,4.196]
[1745720847750,5.6021,1817.1,1817.0,5.29625]
[1745720848954,7.4369,1817.1,1817.0,5.29625]
[1745720853260,5.5568,1817.1,1817.0,5.29625]
[1745720853870,5.5568,1817.1,1817.0,9.28125]
[1745720858858,3.722,1817.1,1817.0,9.28125]
[1745720859058,3.722,1817.1,1817.0,14.28125]
[1745720862962,1.8634,1817.8,1817.3,1.10007]
[1745720863160,1.9978,1817.7,1817.6,1.09988]
[1745720864154,5.7198,1817.7,1817.6,1.09988]
[1745720877474,10.7198,1817.7,1817.4,4.30777]
[1745720877675,3.2078,1817.5,1817.4,5.28498]
[1745720878178,8.9141,1817.5,1817.4,5.28498]
[1745720878870,5.7063,1817.5,1817.4,5.28498]
[1745720879075,3.722,1817.5,1817.4,5.28498]
[1745720879666,3.722,1817.5,1817.4,7.25058]
[1745720881174,3.722,1817.5,1817.4,9.12908]
[1745720882178,3.722,1817.5,1817.4,7.16348]
[1745720882371,3.722,1817.5,1817.4,1.09998]
[1745720882571,5.6292,1817.5,1817.4,5.28498]
[1745720883275,8.837,1817.5,1817.4,5.28498]
[1745720883476,13.837,1817.5,1817.4,5.28501]
[1745720883779,13.837,1817.5,1817.4,4.185]
[1745720884380,8.837,1817.5,1817.4,5.28501]
[1745720885182,3.722,1817.5,1817.4,5.28501]
[1745720889886,3.722,1817.5,1817.4,7.23431]
[1745720896701,3.722,1817.5,1817.4,5.28501]
[1745720896994,11.9298,1817.5,1817.3,1.10004]
[1745720897194,3.8687,1817.4,1817.3,1.10004]
[1745720897590,8.8687,1817.4,1817.3,1.10004]
[1745720897898,8.8687,1817.4,1817.2,11.49922682]
[1745720898093,3.2078,1817.3,1817.2,11.49922682]
[1745720898495,8.2078,1817.3,1817.2,11.49922682]
[1745720898694,10.0678,1817.3,1817.2,11.49922682]
[1745720898993,10.0678,1817.3,1817.2,4.174]
[1745720899193,13.7898,1817.3,1817.2,5.27413]
[1745720902501,13.7898,1817.3,1817.1,1.10013]
[1745720902800,1.9274,1817.2,1817.1,1.10013]
[1745720903001,1.9274,1817.2,1817.0,1.10022]
[1745720903195,5.2132,1817.1,1817.0,1.10022]
[1745720903602,7.1406,1817.1,1817.0,1.10022]
[1745720903993,7.1406,1817.1,1816.9,5.27530001]
[1745720904195,3.827,1817.0,1816.9,4.17500001]
[1745720904500,3.827,1817.0,1816.9,5.27531001]
[1745720905099,7.549,1817.0,1816.9,5.27531001]
[1745720908902,10.7568,1817.0,1816.9,5.27531001]
[1745720911207,7.549,1817.0,1816.9,5.27531001]
[1745720911500,10.7568,1817.0,1816.9,5.27531001]
[1745720913503,10.7568,1817.0,1816.9,4.17500001]
[1745720913703,10.7568,1817.0,1816.9,5.27531001]
[1745720915507,10.7568,1817.0,1816.9,4.17500001]
[1745720915705,10.7568,1817.0,1816.9,5.27531001]
[1745720916099,10.7568,1817.0,1816.9,1e-08]
[1745720919008,10.7568,1817.0,1816.9,1.10031001]
[1745720919209,10.7568,1817.0,1816.9,1e-08]
[1745720919808,10.7568,1817.0,1816.9,1.10031001]
[1745720920008,10.7568,1817.0,1816.9,1e-08]
[1745720920204,12.0575,1817.0,1816.9,1e-08]
[1745720923108,17.0575,1817.0,1816.9,1e-08]
[1745720924009,17.15324785,1817.0,1816.9,1e-08]
[1745720924309,12.0575,1817.0,1816.9,1e-08]
[1745720925908,8.8497,1817.0,1816.9,1e-08]
[1745720926207,12.0575,1817.0,1816.9,1e-08]
[1745720929407,8.8497,1817.0,1816.9,1e-08]
[1745720929604,12.0575,1817.0,1816.9,1e-08]
[1745720930813,17.0575,1817.0,1816.9,1e-08]
[1745720931413,12.0575,1817.0,1816.9,1e-08]
[1745720931712,3.722,1817.0,1816.9,9.30811001]
[1745720932209,2.59349,1817.0,1816.9,9.30811001]
[1745720932409,9.16588471,1817.6,1817.5,1.09995]
[1745720932615,12.37368471,1817.6,1817.5,4.165]
[1745720932805,14.34268471,1817.6,1817.5,4.165]
[1745720933304,18.06468471,1817.6,1817.5,4.165]
[1745720933799,8.8988,1817.6,1817.5,4.165]
[1745720934815,8.8988,1817.6,1817.4,3.7903]
[1745720935112,1.969,1817.5,1817.4,3.7903]
[1745720935914,1.969,1817.5,1817.4,4.89031]
[1745720936214,5.691,1817.5,1817.4,4.89031]
[1745720938213,8.8988,1817.5,1817.4,4.89031]
[1745720939617,8.8988,1817.5,1817.4,1.8877]
[1745720939822,8.8988,1817.5,1817.2,7.13861]
[1745720940015,1.8421,1817.4,1817.2,4.165]
[1745720940522,1.8421,1817.4,1817.2,5.26512]
[1745720940710,1.8421,1817.4,1817.2,4.165]
[1745720940910,1.8421,1817.4,1817.2,5.26513]
[1745720941217,5.5641,1817.4,1817.2,5.26513]
[1745720941409,1.8421,1817.3,1817.2,5.26513]
[1745720942120,5.5641,1817.3,1817.2,5.26513]
[1745720942419,5.5641,1817.3,1817.2,7.10073]
[1745720945722,5.5641,1817.3,1817.2,4.165]
[1745720949324,5.5641,1817.3,1817.2,5.9842]
[1745720952123,8.7719,1817.3,1817.2,5.9842]
[1745720952528,8.7719,1817.3,1817.2,4.165]
[1745720954427,8.7719,1817.3,1817.2,5.26513]
[1745720957622,5.5641,1817.3,1817.2,5.26513]
[1745720957929,3.722,1817.3,1817.2,5.26513]
[1745720958225,3.722,1817.3,1817.2,9.07563]
[1745720964134,8.722,1817.3,1816.9,1e-08]
[1745720964432,3.2078,1817.1,1816.9,1e-08]
[1745720964630,1.9282,1817.0,1816.9,1e-08]
[1745720965233,5.6502,1817.0,1816.9,1e-08]
[1745720965735,5.6502,1817.0,1816.9,1.10031001]
[1745720966035,5.6502,1817.0,1816.9,1e-08]
[1745720966336,6.11543131,1817.0,1816.9,1.10031001]
[1745720966528,6.1153263,1817.0,1816.9,1.10031001]
[1745720967535,6.1153263,1817.0,1816.9,3.06231001]
[1745720970432,4.1871263,1817.0,1816.9,4.92771001]
[1745720970631,4.1871263,1817.0,1816.9,6.75351001]
[1745720973142,6.0807263,1817.0,1816.9,6.75351001]
[1745720973642,4.1871263,1817.0,1816.9,14.96131001]
[1745720975438,4.1871263,1817.0,1816.9,11.75351001]
[1745720976334,4.1871263,1817.0,1816.9,6.75351001]
[1745720980853,3.722,1817.0,1816.9,6.75351001]
[1745720982353,4.17210958,1817.0,1816.9,6.75351001]
[1745720983855,3.722,1817.0,1816.9,6.75351001]
[1745720984758,4.172107,1817.0,1816.9,6.75351001]
[1745720985058,4.172107,1817.0,1816.9,4.92771001]
[1745720985454,6.116107,1817.0,1816.9,4.92771001]
[1745720985953,6.116107,1817.0,1816.9,3.06231001]
[1745720986645,6.116107,1817.0,1816.9,1.10031001]
[1745720987056,6.116107,1817.0,1816.9,4.15400001]
[1745720987256,6.116107,1817.0,1816.9,5.25431001]
[1745720987456,6.116107,1817.0,1816.9,4.15400001]
[1745720987860,6.116107,1817.0,1816.9,5.25431001]
[1745720996668,6.116107,1817.0,1816.9,4.15400001]
[1745720996965,6.116107,1817.0,1816.9,5.25431001]
[1745720997164,6.116107,1817.0,1816.9,4.15400001]
[1745721000668,12.416807,1817.0,1816.9,1e-08]
[1745721001858,7.416807,1817.0,1816.9,1e-08]
[1745721002769,12.416807,1817.0,1816.9,1e-08]
[1745721003161,7.416807,1817.0,1816.9,1e-08]
[1745721006171,7.416807,1817.0,1816.9,1.10031001]
[1745721007073,7.416807,1817.0,1816.9,1e-08]
[1745721009368,7.416807,1817.0,1816.9,1.10031001]
[1745721009569,6.116107,1817.0,1816.9,1.10031001]
[1745721010070,4.172107,1817.0,1816.9,7.97331001]
[1745721011166,3.722,1817.0,1816.9,2.97331001]
[1745721011472,5.7046,1817.0,1816.9,2.97331001]
[1745721011769,6.15580725,1817.0,1816.9,2.97331001]
[1745721012069,4.17320725,1817.0,1816.9,7.97331001]
[1745721012474,4.17320725,1817.0,1816.9,2.97331001]
[1745721013170,6.03600725,1817.0,1816.9,2.97331001]
[1745721013666,6.03600725,1817.0,1816.9,1.87300001]
[1745721013973,7.89870725,1817.0,1816.9,5.24331001]
[1745721014167,7.89870725,1817.0,1816.9,4.14300001]
[1745721015071,7.89870725,1817.0,1816.9,5.24331001]
[1745721015874,4.17320725,1817.0,1816.9,5.24331001]
[1745721016072,4.17320725,1817.0,1816.9,7.18321001]
[1745721023386,6.15530725,1817.0,1816.9,5.24331001]
[1745721023778,5.7041,1817.0,1816.9,5.24331001]
[1745721024379,5.7041,1817.0,1816.9,4.14300001]
[1745721024575,7.5526,1817.0,1816.9,4.14300001]
[1745721024977,7.5526,1817.0,1816.9,1e-08]
[1745721025375,12.5526,1817.0,1816.9,1e-08]
[1745721028384,8.8533,1817.0,1816.9,1e-08]
[1745721028583,13.8533,1817.0,1816.9,1e-08]
[1745721028974,14.32494856,1817.0,1816.9,1e-08]
[1745721030381,9.32494856,1817.0,1816.9,1e-08]
[1745721030576,10.70974856,1817.0,1816.9,1e-08]
[1745721032777,15.70974856,1817.0,1816.9,1e-08]
[1745721032977,15.80563597,1817.0,1816.9,1e-08]
[1745721033681,15.80563597,1817.0,1816.3,4.133]
[1745721033891,3.2078,1816.4,1816.3,4.133]
[1745721034087,6.9298,1816.4,1816.2,7.32522682]
[1745721034278,4.2945,1816.3,1816.2,7.32522682]
[1745721034780,4.76614856,1816.3,1816.2,7.32522682]
[1745721035085,8.48814856,1816.3,1816.2,7.32522682]
[1745721037889,14.88476717,1816.3,1815.6,7.32826366]
[1745721038189,3.2078,1815.7,1815.6,7.32826366]
[1745721038387,4.98014856,1815.7,1815.6,7.32826366]
[1745721038593,5.07611101,1815.7,1815.6,7.32826366]
[1745721038783,5.07611064,1815.7,1815.6,7.32826366]
[1745721039292,10.38821064,1815.7,1815.6,7.32826366]
[1745721039487,10.29224856,1815.7,1815.6,7.32826366]
[1745721041590,10.29224856,1815.7,1815.4,1.10119]
[1745721041789,3.2078,1815.5,1815.3,2.77314]
[1745721041985,1.5901,1815.4,1815.3,2.77314]
[1745721042185,3.722,1815.4,1815.3,2.77314]
[1745721042690,5.3403,1815.4,1815.3,1.10124]
[1745721042885,5.3403,1815.4,1815.2,1.5822]
[1745721043392,4.8261,1815.3,1815.1,2.38277]
[1745721043599,1.6183,1815.2,1815.1,2.38277]
[1745721044092,1.6183,1815.2,1815.1,3.96497]
[1745721044280,5.3403,1815.2,1815.1,3.96497]
[1745721044486,3.722,1815.2,1815.1,3.96497]
[1745721044880,5.3403,1815.2,1815.1,3.96497]
[1745721045392,5.3403,1815.2,1815.1,2.38277]
[1745721045991,3.722,1815.2,1815.1,3.98547]
[1745721046181,3.722,1815.2,1815.1,8.98547]
[1745721046683,3.722,1815.2,1814.8,3.2078]
[1745721046992,3.722,1815.2,1814.9,4.2806]
[1745721047188,5.3633,1815.2,1815.0,1.6027]
[1745721047889,3.722,1815.2,1815.1,1.1014]
[1745721048185,3.722,1815.2,1815.1,5.2364]
[1745721048391,3.722,1815.2,1815.1,10.2364]
[1745721049593,3.722,1815.2,1815.1,5.2364]
[1745721050294,5.4167,1815.2,1815.1,5.2364]
[1745721050683,3.722,1815.2,1815.1,5.2364]
[1745721051895,3.722,1815.2,1815.1,1.1014]
[1745721052290,3.722,1815.2,1815.1,2.7261]
[1745721052489,5.3947,1815.2,1815.1,2.7261]
[1745721054100,5.3947,1815.2,1814.9,1.3525]
[1745721054395,6.58987858,1815.1,1814.9,1.3525]
[1745721054696,1.7096,1815.0,1814.9,1.3525]
[1745721055097,5.4316,1815.0,1814.9,1.3525]
[1745721056200,5.4316,1815.0,1814.7,1.10161]
[1745721056497,1.7096,1814.9,1814.8,2.23548]
[1745721057098,5.4316,1814.9,1814.8,2.23548]
[1745721057702,5.4316,1814.9,1814.8,1.1339]
[1745721059101,6.53312,1814.9,1814.8,2.23548]
[1745721059501,6.99684473,1814.9,1814.8,2.23548]
[1745721059697,5.89532473,1814.9,1814.8,1.10158]
[1745721059903,10.20468473,1814.9,1814.7,1.10161]
[1745721060095,10.20468473,1814.9,1814.8,1.10158]
[1745721060096,9.10312473,1814.9,1814.8,1.10158]
[1745721060303,9.10312473,1814.9,1814.8,2.35658]
[1745721062003,7.39352473,1814.9,1814.8,2.35658]
[1745721062402,4.18572473,1814.9,1814.8,2.35658]
[1745721065099,5.75182473,1814.9,1814.8,2.35658]
[1745721066910,4.18572473,1814.9,1814.8,10.56438]
[1745721067100,0.46372473,1814.9,1814.8,10.56438]
[1745721067404,1.675,1815.2,1815.1,1.1014]
[1745721067604,3.2078,1815.3,1815.2,1.10134]
[1745721068306,6.9298,1815.3,1815.2,1.10134]
[1745721068504,6.9298,1815.3,1815.2,2.76744]
[1745721068906,8.6048,1815.3,1815.2,2.76744]
[1745721069407,3.722,1815.3,1815.2,7.76744]
[1745721069609,3.2078,1815.6,1815.5,1.10116]
[1745721069610,4.8828,1815.6,1815.5,1.10116]
[1745721069909,4.8828,1815.6,1815.2,9.41939]
[1745721069910,1.10081,1816.1,1815.4,10.08674]
[1745721070212,6.5487,1816.1,1815.5,2.8365]
[1745721070513,6.5487,1816.1,1815.7,1.101]
[1745721070702,2.69729,1816.0,1815.7,1.101]
[1745721070903,1.5964,1815.9,1815.8,1.2103]
[1745721071110,5.3184,1815.9,1815.8,2.31128]
[1745721071416,3.722,1815.9,1815.8,10.08938298]
[1745721071908,3.722,1815.9,1815.8,9.64508]
[1745721072110,3.722,1815.9,1815.8,11.27678]
[1745721073402,3.722,1815.9,1815.8,9.64508]
[1745721074912,3.722,1815.9,1815.8,6.43728]
[1745721075309,3.722,1815.9,1815.8,5.3363]
[1745721075616,4.82291,1815.9,1815.8,4.126]
[1745721075810,1.10101,1815.8,1815.6,3.2078]
[1745721076003,2.31214,1815.7,1815.6,3.2078]
[1745721076209,3.54714,1815.7,1815.6,3.2078]
[1745721076408,2.4461,1815.7,1815.6,3.2078]
[1745721076603,4.0865,1815.7,1815.6,4.3089]
[1745721077014,2.8515,1815.7,1815.6,4.3089]
[1745721077213,6.5735,1815.7,1815.6,4.3089]
[1745721077513,6.5735,1815.7,1815.6,3.2078]
[1745721077714,3.722,1815.7,1815.6,4.3089]
[1745721077917,3.722,1815.7,1815.6,5.9739]
[1745721079418,3.722,1815.7,1815.6,7.2118]
[1745721079614,3.722,1815.7,1815.6,8.1182]
[1745721082619,3.722,1815.7,1815.6,13.1182]
[1745721083014,0.72952473,1815.7,1815.6,13.1182]
[1745721084521,0.72952473,1815.7,1815.6,8.1182]
[1745721086222,1.5642,1815.9,1815.8,1.10098]
[1745721086621,1.5642,1815.9,1815.8,4.30878]
[1745721087322,6.38711,1815.9,1815.8,3.2078]
[1745721088620,5.2862,1815.9,1815.8,3.2078]
[1745721088816,5.2862,1815.9,1815.8,4.30878]
[1745721089320,5.2862,1815.9,1815.8,3.2078]
[1745721089521,6.38711,1815.9,1815.8,3.2078]
[1745721089718,5.2862,1815.9,1815.8,4.30878]
[1745721090424,6.38711,1815.9,1815.7,1.10098]
[1745721090611,2.7124,1815.8,1815.7,1.10098]
[1745721090818,3.81338,1815.8,1815.7,1.10098]
[1745721091013,1.10104,1815.7,1815.6,3.2078]
[1745721091219,1.1011,1815.6,1815.5,4.125]
[1745721091424,2.2183,1815.6,1815.5,4.125]
[1745721091620,2.2183,1815.6,1815.4,4.30899]
[1745721091621,3.8541,1815.6,1815.4,4.30899]
[1745721091824,3.83796,1815.5,1815.4,3.2078]
[1745721092134,7.55996,1815.5,1815.4,3.2078]
[1745721092424,12.55996,1815.5,1815.4,3.2078]
[1745721093316,7.55996,1815.5,1815.4,3.2078]
[1745721094825,1.10126,1815.4,1815.2,5.21632]
[1745721095028,2.72626,1815.4,1815.2,5.21632]
[1745721095228,6.44826,1815.4,1815.2,5.21632]
[1745721095426,1.625,1815.3,1815.2,5.21632]
[1745721096123,5.347,1815.3,1815.2,5.21632]
[1745721098531,5.347,1815.3,1815.2,9.52532]
[1745721099029,5.347,1815.3,1815.2,6.31752]
[1745721100233,5.347,1815.3,1815.2,6.31852]
[1745721103627,5.347,1815.3,1815.2,7.91382]
[1745721103932,5.347,1815.3,1815.2,11.12162]
[1745721105326,5.347,1815.3,1815.2,9.52632]
[1745721106023,3.722,1815.3,1815.2,9.52632]
[1745721107333,5.359,1815.3,1815.2,9.52632]
[1745721107535,5.359,1815.3,1815.2,8.42512]
[1745721109531,6.46028,1815.3,1815.2,7.3238]
[1745721110535,6.46028,1815.3,1815.2,8.42514]
[1745721111038,5.359,1815.3,1815.2,8.42514]
[1745721113341,5.359,1815.3,1815.2,5.21734]
[1745721115227,5.359,1815.3,1815.2,6.80424]
[1745721115228,3.722,1815.3,1815.2,6.80424]
[1745721115633,3.722,1815.3,1815.2,11.80424]
[1745721116834,3.722,1815.3,1815.2,6.80424]
[1745721117444,3.722,1815.3,1815.2,8.9107]
[1745721117644,3.722,1815.3,1815.2,10.01204]
[1745721119435,6.45368,1815.3,1815.2,7.3238]
[1745721120036,11.45368,1815.3,1815.2,3.2078]
[1745721120442,5.3524,1815.3,1815.2,3.2078]
[1745721120642,5.3524,1815.3,1815.2,4.30914]
[1745721121232,5.3524,1815.3,1815.2,1.10134]
[1745721121637,6.45368,1815.3,1815.1,1.10137]
[1745721121844,2.8128,1815.2,1815.1,1.10137]
[1745721122146,6.5348,1815.2,1815.1,1.10137]
[1745721122646,7.0141085,1815.2,1815.1,1.10137]
[1745721123740,8.0176085,1815.2,1815.0,5.1513]
[1745721123947,1.7114,1815.1,1815.0,5.20846]
[1745721124146,7.0141085,1815.1,1815.0,4.107]
[1745721124352,5.9127085,1815.1,1815.0,1.10146]
[1745721125049,7.0141385,1815.1,1814.9,1.0516]
[1745721125346,2.1971085,1815.0,1814.9,1.10148]
[1745721125546,3.2985885,1815.0,1814.8,7.3148]
[1745721125747,2.1971085,1814.9,1814.8,8.41638]
[1745721126147,6.9318085,1814.9,1814.8,8.41638]
[1745721127747,5.9191085,1814.9,1814.8,8.41638]
[1745721128454,7.0206285,1814.9,1814.8,3.2078]
[1745721128648,5.9191085,1814.9,1814.8,3.2078]
[1745721128848,5.9191085,1814.9,1814.8,4.30938]
[1745721129145,4.2013085,1814.9,1814.8,4.30938]
[1745721129546,4.2013085,1814.9,1814.8,10.31168]
[1745721130047,3.722,1814.9,1814.8,10.31168]
[1745721130243,1.1014,1815.2,1815.1,1.1014]
[1745721130546,1.57881341,1815.2,1815.1,8.4172]
[1745721131148,5.30081341,1815.2,1815.1,8.4172]
[1745721131349,5.30081341,1815.2,1815.1,9.4428]
[1745721132149,4.19941341,1815.2,1815.1,9.4428]
[1745721133850,5.30075341,1815.2,1815.1,4.108]
[1745721135051,7.01295341,1815.2,1815.1,4.108]
[1745721135445,5.91161341,1815.2,1815.1,5.2094]
[1745721136848,5.91161341,1815.2,1815.1,4.108]
[1745721137043,7.01295341,1815.2,1815.1,4.108]
[1745721137948,5.91161341,1815.2,1815.1,1.1014]
[1745721138150,4.19941341,1815.2,1815.1,4.3092]
[1745721138852,4.19941341,1815.2,1815.1,5.9507]
[1745721139348,4.19941341,1815.2,1815.1,4.3092]
[1745721140156,4.19941341,1815.2,1815.1,3.2078]
[1745721140355,4.19941341,1815.2,1814.9,1.0624]
[1745721140556,2.06901341,1815.1,1815.0,1.10146]
[1745721141256,5.79101341,1815.1,1815.0,1.10146]
[1745721142257,1.10146,1815.0,1814.8,8.41634]
[1745721142456,2.6675,1815.0,1814.9,1.10152]
[1745721142756,3.14491341,1815.0,1814.9,1.10152]
[1745721143148,4.24639341,1815.0,1814.8,8.41636]
[1745721143357,1.5986,1814.9,1814.8,8.41636]
[1745721143654,2.07601341,1814.9,1814.8,8.41636]
[1745721144253,5.79801341,1814.9,1814.8,8.41636]
[1745721146552,6.89953341,1814.9,1814.8,8.41636]
[1745721146757,5.79801341,1814.9,1814.8,8.41636]
[1745721146955,6.89953341,1814.9,1814.8,3.2078]
[1745721147158,1.10164,1814.7,1814.6,3.2078]
[1745721147363,1.10164,1814.7,1814.5,5.20073]
[1745721147552,3.6949,1814.6,1814.5,4.099]
[1745721147752,4.17231341,1814.6,1814.5,4.099]
[1745721148064,6.79261341,1814.6,1814.5,5.20076]
[1745721148960,6.79261341,1814.6,1814.5,6.84886]
[1745721149754,5.10471341,1814.6,1814.5,6.84886]
[1745721150660,4.19941341,1814.6,1814.5,6.84886]
[1745721151860,3.722,1814.6,1814.5,6.84886]
[1745721152160,2.5688,1814.7,1814.6,1.1017]
[1745721152359,2.5688,1814.7,1814.6,5.9]
[1745721152562,3.01422551,1814.7,1814.6,5.9]
[1745721153164,6.73622551,1814.7,1814.6,5.9]
[1745721153966,4.16742551,1814.7,1814.6,5.9]
[1745721154561,3.722,1814.7,1814.6,5.9]
[1745721155060,1.5612,1814.9,1814.8,1.10158]
[1745721155253,2.00656619,1814.9,1814.8,1.10158]
[1745721156165,5.72856619,1814.9,1814.8,1.10158]
[1745721159375,5.72856619,1814.9,1814.8,9.30938]
[1745721159376,0.19058619,1814.9,1814.8,9.30938]
[1745721159562,7.32892894,1815.5,1815.4,1.10122]
[1745721159960,8.95922894,1815.5,1815.4,1.10122]
[1745721160160,12.68122894,1815.5,1815.4,4.30902]
[1745721160469,12.68122894,1815.5,1815.4,5.98592]
[1745721160764,11.05092894,1815.5,1815.4,5.98592]
[1745721161167,7.32892894,1815.5,1815.4,5.98592]
[1745721161670,7.32892894,1815.5,1815.4,6.43028653]
[1745721162373,7.32892894,1815.5,1815.4,5.98592]
[1745721162574,7.32892894,1815.5,1815.4,6.95852]
[1745721163065,11.05092894,1815.5,1815.4,6.95852]
[1745721163772,3.722,1815.5,1815.4,6.95852]
[1745721164167,0.9264,1815.8,1815.4,6.95852]
[1745721164168,0.9264,1815.8,1815.7,1.10104]
[1745721164370,0.9264,1815.8,1815.7,5.19904]
[1745721164770,0.9264,1815.8,1815.7,6.89764]
[1745721165167,3.722,1815.8,1815.7,6.89764]
[1745721165866,3.722,1815.8,1815.7,7.01084]
[1745721167074,3.722,1815.8,1815.7,6.89764]
[1745721169069,3.722,1815.8,1815.7,5.19904]
[1745721169764,3.722,1815.8,1815.7,1.10104]
[1745721169969,5.3438,1815.8,1815.7,1.10104]
[1745721173167,10.3438,1815.8,1815.2,65.918]
[1745721173372,1.10121,1815.5,1815.2,67.01932]
[1745721173673,3.78123,1815.4,1815.2,4.097]
[1745721173885,2.6228,1815.3,1815.2,5.19834]
[1745721174178,6.3448,1815.3,1815.2,5.19834]
[1745721174373,6.3448,1815.3,1815.2,4.097]
[1745721174980,11.3448,1815.3,1815.0,4.098]
[1745721175184,1.6887,1815.2,1815.0,8.40724]
[1745721175372,1.6887,1815.2,1815.1,1.1014]
[1745721175568,2.79005,1815.2,1815.0,4.098]
[1745721175974,1.6887,1815.1,1815.0,4.098]
[1745721176170,5.4107,1815.1,1815.0,5.19946]
[1745721178281,5.4107,1815.1,1815.0,8.40726]
[1745721179380,1.6887,1815.1,1815.0,8.40726]
[1745721180077,5.4107,1815.1,1815.0,8.40726]
[1745721183378,5.4107,1815.1,1815.0,7.3058]
[1745721183582,6.5121,1815.1,1815.0,7.3058]
[1745721183887,6.5121,1815.1,1815.0,3.2078]
[1745721185080,10.4107,1815.1,1814.8,4.09]
[1745721185286,1.10152,1814.9,1814.8,4.09]
[1745721185783,2.78342,1814.9,1814.8,4.09]
[1745721186187,6.50542,1814.9,1814.8,4.09]
[1745721186588,5.4039,1814.9,1814.8,4.09]
[1745721186792,5.4039,1814.9,1814.8,5.19158]
[1745721188382,6.2798,1814.9,1814.8,5.19158]
[1745721189886,5.4039,1814.9,1814.8,5.19158]
[1745721190295,1.6819,1814.9,1814.8,5.19158]
[1745721190993,4.0863,1815.1,1815.0,1.10146]
[1745721191189,5.7373,1815.1,1815.0,1.10146]
[1745721192105,9.4593,1815.1,1815.0,1.10146]
[1745721193092,9.4593,1815.1,1815.0,1.96086]
[1745721194096,6.2515,1815.1,1815.0,1.96086]
[1745721195401,6.2515,1815.1,1815.0,1.10146]
[1745721196802,1.10148,1815.0,1814.8,6.11825]
[1745721197010,1.10152,1814.9,1814.7,1.10162]
[1745721197196,1.7228,1814.8,1814.7,1.10162]
[1745721198107,5.4448,1814.8,1814.7,1.10162]
[1745721203706,5.91059209,1814.8,1814.7,1.10162]
[1745721204409,4.18779209,1814.8,1814.7,2.68642]
[1745721205210,4.18779209,1814.8,1814.7,1.10162]
[1745721207006,4.18779209,1814.8,1814.7,2.72962]
[1745721207703,4.18779209,1814.8,1814.7,1.10162]
[1745721208208,5.04439209,1814.8,1814.7,1.10162]
[1745721213107,6.14600209,1814.8,1814.6,5.19168]
[1745721213308,2.5842,1814.7,1814.6,5.19168]
[1745721214004,3.04999209,1814.7,1814.6,5.19168]
[1745721214204,9.97979209,1814.7,1814.5,1.10174]
[1745721214405,2.19079209,1814.6,1814.5,1.10174]
[1745721215112,5.91279209,1814.6,1814.5,1.10174]
[1745721217613,13.66710209,1814.6,1814.1,5.18395]
[1745721217819,4.30973,1814.3,1813.9,5.0058]
[1745721218115,3.85719209,1814.2,1814.1,1.10201]
[1745721218512,2.06399209,1814.2,1814.1,1.10201]
[1745721219115,4.18779209,1814.2,1814.1,11.00591]
[1745721219414,3.722,1814.2,1814.1,11.00591]
[1745721220007,3.722,1814.2,1814.1,6.00591]
[1745721220208,1.5698,1814.5,1814.3,1.10183]
[1745721220416,0.47159554,1814.4,1814.3,4.083]
[1745721220614,0.47159554,1814.4,1814.3,5.18489]
[1745721220916,2.04139554,1814.4,1814.3,4.083]
[1745721221112,6.86521554,1814.4,1814.3,4.083]
[1745721221614,5.76339554,1814.4,1814.3,4.083]